bitfinex/quotes_ETHUSD_20220119
["timestamp","ask_amount","ask_price","bid_price","bid_amount"]
[1642613348185,2.35852283,3136.8,3136.5,0.00454739]
[1642613348387,3.35852283,3136.8,3136.5,0.00454739]
[1642613348990,3.3220328,3136.8,3136.5,0.00454739]
[1642613349391,0.79729,3136.8,3136.5,0.00454739]
[1642613349593,0.79726,3136.9,3136.5,0.00454739]
[1642613350194,3.2,3136.8,3136.5,0.00454739]
[1642613350392,3.2,3136.8,3136.6,2.71317846]
[1642613350593,3.5,3136.8,3136.5,0.00454739]
[1642613350795,3.8,3136.8,3136.7,0.00341054]
[1642613350993,3.8,3136.8,3136.5,0.00454739]
[1642613351192,4.5972,3136.8,3136.7,0.00341054]
[1642613351441,4.5972,3136.8,3136.5,0.00454739]
[1642613351633,4.5972,3136.8,3136.4,0.84062176]
[1642613351634,4.5972,3136.8,3136.7,0.00341054]
[1642613351836,3.8,3136.8,3136.5,2.71769522]
[1642613352034,3.2,3136.8,3136.6,3.71314783]
[1642613352234,3.5,3136.8,3136.7,2.71314783]
[1642613352434,3.5,3136.8,3136.7,2.71655837]
[1642613352632,3.5,3136.8,3136.7,0.00341054]
[1642613353233,3.5,3136.8,3136.7,4.50341054]
[1642613353434,8.10199,3137.3,3136.8,0.84054393]
[1642613353435,7.305,3137.3,3136.8,0.84054393]
[1642613353635,7.605,3137.3,3136.8,0.84054393]
[1642613353835,7.605,3137.3,3136.9,0.0022737]
[1642613354238,7.305,3137.3,3136.9,0.0022737]
[1642613354439,7.305,3137.3,3136.9,2.71519266]
[1642613354638,7.305,3137.3,3136.9,0.0022737]
[1642613354839,7.305,3137.3,3137.0,0.00170527]
[1642613355082,7.305,3137.3,3136.9,0.0022737]
[1642613355484,7.605,3137.3,3136.9,0.0022737]
[1642613355682,7.905,3137.3,3136.9,0.0022737]
[1642613356084,1.59409,3137.5,3136.9,0.0022737]
[1642613356386,0.79692,3137.7,3136.9,3.21330904]
[1642613356589,0.79692,3137.7,3137.0,2.71275169]
[1642613356786,0.00170527,3137.6,3137.1,3.23125778]
[1642613356985,0.00170527,3137.6,3137.2,2.71275169]
[1642613357185,0.00113684,3137.5,3137.2,2.71275169]
[1642613357584,0.00284211,3137.8,3137.2,3.5]
[1642613357985,7.9882,3137.9,3137.3,3.7125652]
[1642613357986,0.00227369,3137.7,3137.3,3.7125652]
[1642613358185,0.00227369,3137.7,3137.4,2.71252813]
[1642613358384,0.00284211,3137.8,3137.4,1.0542]
[1642613358585,0.00284211,3137.8,3137.4,4.2749128]
[1642613358849,7.9882,3137.9,3137.4,4.2749128]
[1642613358850,0.00227369,3137.7,3137.4,4.2749128]
[1642613359042,0.00227369,3137.7,3137.5,3.71234027]
[1642613359247,0.00284211,3137.8,3137.6,8.41290197]
[1642613359442,0.00284211,3137.8,3137.7,12.60684635]
[1642613359640,7.6074,3138.4,3137.7,12.60684635]
[1642613359842,7.9074,3138.4,3138.3,4.14708134]
[1642613360042,12.026,3138.6,3138.3,4.88708134]
[1642613360241,11.726,3138.6,3138.3,4.88708134]
[1642613360441,0.00682108,3138.5,3138.3,4.88708134]
[1642613360841,0.00625265,3138.4,3138.3,3.54]
[1642613361042,0.00625265,3138.4,3138.3,0.74]
[1642613362583,0.00625265,3138.4,3138.0,3.57811027]
[1642613362985,0.00568423,3138.3,3138.0,3.57811027]
[1642613363385,0.00511581,3138.2,3138.0,3.57811027]
[1642613363587,0.00511581,3138.2,3138.0,0.459]
[1642613363888,0.00454738,3138.1,3138.0,0.459]
[1642613364089,0.00454738,3138.1,3138.0,5.959]
[1642613364293,0.00568423,3138.1,3138.0,5.959]
[1642613364491,0.00568423,3138.1,3138.0,6.959]
[1642613364690,0.00568423,3138.1,3138.0,9.67083376]
[1642613364893,0.00568423,3138.1,3138.0,6.959]
[1642613367232,0.00568423,3138.1,3138.0,10.25658076]
[1642613368334,0.00568423,3138.1,3138.0,10.38398076]
[1642613368534,0.00568423,3138.1,3138.0,10.25658076]
[1642613369343,0.00568423,3138.1,3138.0,6.959]
[1642613370182,0.00568423,3138.1,3138.0,7.0782]
[1642613370382,0.00568423,3138.1,3138.0,6.959]
[1642613370783,3.2,3138.4,3138.1,5.80423478]
[1642613370985,3.2,3138.4,3138.2,3.13901894]
[1642613371183,3.2,3138.4,3138.2,4.13901894]
[1642613372185,3.2,3138.4,3138.2,1.0]
[1642613372786,3.2,3138.4,3138.1,0.00423478]
[1642613373890,3.2,3138.4,3138.1,3.10444807]
[1642613374088,0.1274,3138.8,3138.3,5.8]
[1642613374294,0.1274,3138.8,3138.4,3.282302]
[1642613374493,0.00227369,3138.7,3138.4,4.8435429]
[1642613374692,0.00227369,3138.7,3138.4,4.8371429]
[1642613374889,0.00170527,3138.6,3138.4,4.8371429]
[1642613375090,0.00170527,3138.6,3138.5,9.464461]
[1642613375292,0.1274,3138.8,3138.5,9.590061]
[1642613375491,0.1274,3138.8,3138.6,0.1274]
[1642613375690,0.00227369,3138.7,3138.6,0.5864]
[1642613375891,0.00227369,3138.7,3138.6,1.7064]
[1642613376092,0.00227369,3138.7,3138.6,10.53587208]
[1642613376291,0.00227369,3138.7,3138.6,6.5056]
[1642613376491,0.00227369,3138.7,3138.6,7.3864]
[1642613376692,0.00227369,3138.7,3138.6,10.48736291]
[1642613376891,0.00227369,3138.7,3138.6,7.5056]
[1642613377096,0.00227369,3138.7,3138.6,10.81587348]
[1642613377291,0.00227369,3138.7,3138.6,7.3864]
[1642613377893,0.00227369,3138.7,3138.6,10.746505]
[1642613378094,0.00227369,3138.7,3138.6,10.747305]
[1642613378293,0.00227369,3138.7,3138.6,12.20295899]
[1642613378493,0.00227369,3138.7,3138.6,12.20135899]
[1642613378894,0.00227369,3138.7,3138.6,12.15259022]
[1642613379098,0.00227369,3138.7,3138.6,12.15339022]
[1642613379496,0.00227369,3138.7,3138.6,12.15259022]
[1642613379698,0.00227369,3138.7,3138.6,12.15419022]
[1642613379897,0.00227369,3138.7,3138.6,8.96685399]
[1642613380296,0.00227369,3138.7,3138.6,0.7104]
[1642613380501,0.00227369,3138.7,3138.6,0.5864]
[1642613381539,0.12967369,3138.7,3138.6,0.459]
[1642613382243,3.32967369,3138.7,3138.6,0.459]
[1642613382640,0.42967369,3138.7,3138.6,0.459]
[1642613382842,0.30227369,3138.7,3138.6,3.209]
[1642613383040,0.30227369,3138.7,3138.6,0.459]
[1642613383240,0.00227369,3138.7,3138.6,0.459]
[1642613384046,0.00227369,3138.7,3138.1,0.00423478]
[1642613384243,0.1274,3138.6,3138.1,0.00423478]
[1642613384441,0.12910527,3138.6,3138.1,0.00423478]
[1642613384642,0.00113685,3138.5,3138.1,0.00423478]
[1642613384846,0.1274,3138.4,3138.1,0.00423478]
[1642613385096,0.00113685,3138.5,3138.2,3.01881307]
[1642613387602,0.00113685,3138.5,3138.3,1.0]
[1642613387796,0.00113685,3138.5,3138.2,3.01881307]
[1642613388502,0.00113685,3138.5,3138.2,1.47659899]
[1642613391946,0.00113685,3138.5,3138.2,2.93787859]
[1642613392621,0.00113685,3138.5,3138.3,7.12530181]
[1642613392911,0.30113685,3138.5,3138.4,9.92785472]
[1642613393108,0.30113685,3138.5,3138.4,11.05665472]
[1642613393307,0.30113685,3138.5,3138.4,11.05505472]
[1642613393508,0.30113685,3138.5,3138.4,11.05745472]
[1642613393708,0.30113685,3138.5,3138.4,11.05665472]
[1642613393913,0.30113685,3138.5,3138.4,11.05745472]
[1642613394113,0.30113685,3138.5,3138.4,7.3878]
[1642613394313,0.30113685,3138.5,3138.4,10.53529586]
[1642613394513,0.30113685,3138.5,3138.4,10.52889586]
[1642613394714,0.30113685,3138.5,3138.4,10.52809586]
[1642613395115,0.30113685,3138.5,3138.4,10.52729586]
[1642613395314,0.30113685,3138.5,3138.4,13.23962831]
[1642613395518,0.1274,3139.6,3138.5,6.02387425]
[1642613395714,0.1274,3139.6,3138.6,3.87789011]
[1642613395914,0.00568423,3139.5,3138.6,0.459]
[1642613396115,0.1274,3139.4,3138.6,0.459]
[1642613396344,0.13251581,3139.4,3138.5,0.22387425]
[1642613396546,0.00454739,3139.3,3138.5,0.22387425]
[1642613396746,0.1274,3139.2,3138.5,0.22387425]
[1642613396947,0.13137896,3139.2,3138.5,0.22387425]
[1642613397146,0.7966661,3139.0,3138.5,0.22387425]
[1642613397346,0.1274,3138.9,3138.5,0.22387425]
[1642613397547,2.24352242,3138.9,3138.5,0.22387425]
[1642613397749,0.00170527,3138.8,3138.5,7.425e-05]
[1642613397946,0.13953164,3138.7,3138.5,7.425e-05]
[1642613398151,0.14066848,3138.7,3138.5,7.425e-05]
[1642613398548,7.05603,3138.6,3138.5,7.425e-05]
[1642613398747,14.15454,3138.6,3138.5,7.425e-05]
[1642613398951,7.5577,3138.6,3138.5,7.425e-05]
[1642613399154,15.5895,3138.6,3138.5,7.425e-05]
[1642613400104,15.8895,3138.6,3138.5,7.425e-05]
[1642613401695,15.5895,3138.6,3138.5,7.425e-05]
[1642613401895,15.1621,3138.6,3138.5,7.425e-05]
[1642613402798,0.00113684,3138.7,3138.5,3.09085842]
[1642613403203,0.00113684,3138.7,3138.6,2.71158133]
[1642613403399,0.00113684,3138.7,3138.5,3.09085842]
[1642613403602,0.00113684,3138.7,3138.5,7.425e-05]
[1642613404040,0.00113684,3138.7,3138.5,2.71168335]
[1642613406445,15.1451,3139.3,3138.5,2.71168335]
[1642613406646,15.4451,3139.3,3138.5,2.71168335]
[1642613406846,15.1451,3139.3,3138.6,1.0]
[1642613407048,0.00397896,3139.2,3138.7,2.7116091]
[1642613407346,0.00397896,3139.2,3138.7,3.7641091]
[1642613407620,4.377361,3139.7,3138.8,3.8390091]
[1642613407621,0.00341054,3139.1,3138.8,3.8390091]
[1642613407812,0.00341054,3139.1,3138.9,3.1706091]
[1642613408106,4.249961,3139.7,3139.2,0.79618]
[1642613408306,4.249961,3139.7,3139.3,3.1706091]
[1642613408510,4.249961,3139.7,3139.6,1.31723628]
[1642613408908,4.25678208,3139.7,3139.6,1.31723628]
[1642613409111,4.25678208,3139.7,3139.6,2.43763628]
[1642613409311,5.53814874,3139.7,3139.6,3.65989133]
[1642613409511,6.8195154,3139.7,3139.6,3.65989133]
[1642613410109,6.8195154,3139.7,3139.6,2.65989133]
[1642613410513,0.1274,3140.5,3139.7,5.8]
[1642613410715,1.2116,3140.8,3139.7,5.8]
[1642613410716,7.9447,3140.7,3139.7,5.8]
[1642613410911,0.00170527,3140.0,3139.8,0.459]
[1642613411114,0.00170527,3140.0,3139.8,1.459]
[1642613411350,0.00113685,3139.9,3139.8,1.459]
[1642613411598,0.00113685,3139.9,3139.8,0.5863]
[1642613411752,0.00113685,3139.9,3139.8,1.5863]
[1642613411954,0.00113685,3139.9,3139.8,0.459]
[1642613413354,0.00113685,3139.9,3139.4,4.3563]
[1642613413658,0.00113685,3139.9,3139.5,0.00113685]
[1642613413659,0.1274,3139.8,3139.5,0.00113685]
[1642613414059,0.1274,3139.8,3139.3,0.00227369]
[1642613415389,0.00113685,3139.9,3139.3,0.00227369]
[1642613415590,0.12853685,3139.9,3139.6,1.33363499]
[1642613415792,0.00113685,3139.9,3139.6,1.33363499]
[1642613416591,0.00113685,3139.9,3139.4,4.1654]
[1642613417593,0.00113685,3139.9,3139.5,1.48052939]
[1642613417993,0.00113685,3139.9,3139.4,4.1654]
[1642613418195,0.00113685,3139.9,3139.4,3.7064]
[1642613418396,0.00113685,3139.9,3139.3,0.00227369]
[1642613418700,0.9238652,3139.8,3139.1,0.00341054]
[1642613418947,1.51985896,3139.3,3139.1,0.00341054]
[1642613419150,1.51985896,3139.3,3138.8,2.0]
[1642613419151,0.1274,3139.2,3138.9,0.00454739]
[1642613419747,0.1274,3139.2,3138.7,0.00568424]
[1642613419947,0.1274,3139.2,3138.8,2.71137207]
[1642613420347,0.1274,3139.2,3138.9,0.00454739]
[1642613420947,0.1274,3139.2,3138.6,0.00625266]
[1642613420948,1.7208029,3139.2,3138.6,0.00625266]
[1642613421148,0.3,3139.1,3138.6,0.00625266]
[1642613421370,0.1274,3139.0,3138.6,0.00625266]
[1642613421564,1.2237,3139.6,3138.7,2.71159865]
[1642613421565,1.3511,3139.6,3138.7,2.71159865]
[1642613421750,0.1274,3139.6,3138.7,2.71159865]
[1642613421949,0.1274,3139.6,3138.8,0.00511581]
[1642613422249,0.1274,3139.6,3139.1,2.39121853]
[1642613422598,12.1938,3139.7,3139.2,0.00284212]
[1642613423203,12.1938,3139.7,3139.1,2.71462231]
[1642613423405,12.9903,3139.7,3139.1,0.00341054]
[1642613423604,12.9903,3139.7,3139.2,0.00284212]
[1642613423605,0.1274,3139.6,3139.2,0.00284212]
[1642613423803,0.1274,3139.6,3139.0,0.00397896]
[1642613424007,1.22001065,3139.1,3138.5,1.63367425]
[1642613424205,1.22001065,3139.1,3138.6,3.71143304]
[1642613424405,1.22001065,3139.1,3138.7,2.71143304]
[1642613424806,1.22001065,3139.1,3138.8,0.00511581]
[1642613425210,1.52001065,3139.1,3138.8,0.00511581]
[1642613425409,1.72097,3139.0,3138.8,0.00511581]
[1642613425609,7.21420273,3138.9,3138.8,0.00511581]
[1642613425813,7.37266649,3138.9,3138.8,0.00511581]
[1642613426009,3.9274,3138.9,3138.8,0.00511581]
[1642613426210,3.96518312,3138.9,3138.8,0.00511581]
[1642613426471,6.26518312,3138.9,3138.8,0.00511581]
[1642613426659,9.85561884,3138.9,3138.8,0.00511581]
[1642613426856,12.24606624,3138.9,3138.8,0.00511581]
[1642613427057,13.40525624,3138.9,3138.1,0.00423478]
[1642613427258,0.00628898,3138.6,3138.1,0.00423478]
[1642613427458,0.1274,3138.5,3138.1,0.00423478]
[1642613427859,1.37944534,3138.4,3138.1,0.00423478]
[1642613428058,0.1274,3138.3,3138.1,0.00423478]
[1642613428258,1.7213362,3138.3,3138.1,0.00423478]
[1642613428457,1.76005437,3138.3,3138.1,0.00423478]
[1642613428658,0.3,3138.2,3138.1,0.00423478]
[1642613428862,0.4274,3138.3,3138.1,0.00423478]
[1642613429063,1.37944534,3138.4,3138.1,0.00821375]
[1642613429267,1.67944534,3138.4,3138.1,0.00821375]
[1642613430293,0.3,3138.4,3138.1,0.00821375]
[1642613430496,12.9373,3138.6,3138.1,0.00821375]
[1642613430695,12.8099,3138.6,3138.2,2.71198452]
[1642613430896,12.8099,3138.6,3138.1,0.00821375]
[1642613431095,12.5099,3138.6,3138.3,0.00284212]
[1642613431294,12.5099,3138.6,3138.2,0.00341054]
[1642613431496,12.5099,3138.6,3138.3,0.00284212]
[1642613431695,12.5099,3138.6,3138.2,0.00341054]
[1642613431899,12.5099,3138.6,3138.2,2.71539549]
[1642613432296,12.2099,3138.6,3138.3,0.00284212]
[1642613432496,0.1274,3139.4,3138.4,0.459]
[1642613432699,18.9271,3139.6,3138.5,2.71198495]
[1642613432897,0.00284212,3139.3,3138.5,2.71369022]
[1642613433097,1.59709896,3139.5,3138.6,0.00113685]
[1642613433296,0.00227369,3139.2,3138.6,0.00113685]
[1642613433496,0.1274,3139.1,3138.6,0.00113685]
[1642613433696,0.00170527,3139.1,3138.6,0.00113685]
[1642613433950,0.92522685,3139.0,3138.6,0.00113685]
[1642613434149,0.79782685,3139.0,3138.2,0.00341054]
[1642613434349,0.79782685,3139.0,3138.3,0.00284212]
[1642613434350,1.39918611,3138.4,3138.3,0.00284212]
[1642613434553,1.39918611,3138.4,3138.2,0.00341054]
[1642613434950,1.69918611,3138.4,3138.2,0.00341054]
[1642613435752,1.99918611,3138.4,3138.2,0.00341054]
[1642613435952,7.3731,3138.3,3138.2,0.00341054]
[1642613437694,8.3731,3138.3,3138.2,0.00341054]
[1642613437894,15.677,3138.3,3138.2,0.00341054]
[1642613438895,14.677,3138.3,3138.2,0.00341054]
[1642613440502,14.83619,3138.3,3138.2,0.00341054]
[1642613440702,7.39413,3138.2,3138.1,0.00423478]
[1642613440903,11.13533114,3138.2,3138.1,0.00423478]
[1642613441100,10.80304278,3138.2,3138.1,0.00423478]
[1642613441348,9.80304278,3138.2,3138.1,0.00423478]
[1642613441551,10.83502683,3138.2,3138.1,0.00423478]
[1642613441753,12.58829683,3138.2,3138.1,0.00423478]
[1642613442461,5.8,3138.1,3136.8,0.84054393]
[1642613442657,0.79711,3137.6,3136.9,2.7128099]
[1642613442854,0.1275,3137.5,3136.9,2.72019941]
[1642613443055,0.1275,3137.5,3136.9,0.00738951]
[1642613443056,0.4275,3137.5,3136.9,0.00738951]
[1642613443457,1.09908596,3137.4,3136.8,0.34793344]
[1642613443657,1.10192808,3137.4,3136.9,2.71281833]
[1642613443857,0.3022737,3137.3,3136.9,2.71281833]
[1642613444057,0.6022737,3137.3,3136.9,2.71281833]
[1642613444259,0.00170527,3137.2,3136.9,2.71281833]
[1642613444656,0.00113685,3137.1,3136.9,2.71281833]
[1642613445106,0.00170527,3137.2,3136.9,2.71281833]
[1642613445503,0.00113685,3137.1,3136.9,2.71281833]
[1642613445906,0.3022737,3137.3,3136.9,2.71281833]
[1642613446106,0.0022737,3137.3,3136.9,2.71281833]
[1642613446305,0.00170527,3137.2,3136.9,3.9123089]
[1642613446506,0.00170527,3137.2,3137.0,2.71281833]
[1642613446807,0.3,3137.5,3137.0,2.71281833]
[1642613447008,1.71471844,3137.8,3137.0,2.71281833]
[1642613447209,0.00113685,3137.4,3137.0,2.71281833]
[1642613447613,0.00113685,3137.4,3137.1,2.71281833]
[1642613447809,0.00113685,3137.4,3137.2,2.71281833]
[1642613448008,0.00113685,3137.4,3137.3,2.71281833]
[1642613448209,0.00113685,3137.4,3137.0,2.71281833]
[1642613448608,0.00113685,3137.4,3137.0,4.06923873]
[1642613448847,0.00113685,3137.4,3137.1,2.71281833]
[1642613449752,0.00113685,3137.4,3137.1,5.88107747]
[1642613449953,0.00113685,3137.4,3137.2,2.71281833]
[1642613450159,0.00113685,3137.4,3137.0,1.3564204]
[1642613450355,0.00113685,3137.4,3137.1,2.71248769]
[1642613451157,0.00113685,3137.4,3137.1,5.8441664]
[1642613451356,0.00113685,3137.4,3137.2,2.71248769]
[1642613451555,0.00113685,3137.4,3137.3,2.71248769]
[1642613451755,0.00113685,3137.4,3137.0,1.3564204]
[1642613451956,0.00113685,3137.4,3137.1,2.71248115]
[1642613453796,0.00113685,3137.4,3137.0,2.71248115]
[1642613454000,0.00113685,3137.4,3137.1,2.71248115]
[1642613454200,0.00113685,3137.4,3137.2,2.71248115]
[1642613454399,0.00113685,3137.4,3136.9,2.71248115]
[1642613454601,0.00113685,3137.4,3137.0,3.71250199]
[1642613454799,0.00113685,3137.4,3137.1,2.71250199]
[1642613455802,0.00113685,3137.4,3137.0,0.00113684]
[1642613455803,0.1275,3137.3,3137.0,0.00113684]
[1642613456200,0.1275,3137.3,3136.9,2.71438639]
[1642613456642,1.42371421,3137.1,3136.9,0.00170527]
[1642613457042,1.72371421,3137.1,3136.6,2.71627755]
[1642613457248,2.91661421,3137.1,3136.7,0.00284211]
[1642613457445,0.1275,3137.0,3136.7,0.00284211]
[1642613458244,0.1275,3137.0,3136.6,2.71650306]
[1642613458442,0.1275,3137.0,3136.7,0.00284211]
[1642613458843,0.1275,3137.0,3136.1,2.71935946]
[1642613459046,0.1275,3137.0,3136.2,2.71879103]
[1642613459245,0.1275,3137.0,3136.3,2.7131068]
[1642613459445,0.1275,3137.0,3136.3,2.71822261]
[1642613459645,0.1275,3137.0,3136.4,2.71765418]
[1642613459847,0.1275,3137.0,3136.5,2.7131068]
[1642613460094,0.79729,3136.9,3136.5,2.71708576]
[1642613460294,0.79729,3136.9,3136.0,1.2612498]
[1642613460295,0.1275,3136.8,3136.6,2.71651734]
[1642613460497,0.1275,3136.8,3136.6,0.00341054]
[1642613460498,0.92473,3136.8,3136.6,0.00341054]
[1642613460698,0.92473,3136.8,3135.8,1.29405112]
[1642613460699,0.92473,3136.8,3136.7,0.00284211]
[1642613460898,0.4275,3136.8,3136.2,2.71316649]
[1642613461098,0.79737,3136.6,3136.2,2.71885072]
[1642613461299,0.79737,3136.6,3136.3,0.00511581]
[1642613461300,1.72234,3136.5,3136.3,0.00511581]
[1642613461699,1.72234,3136.5,3135.8,0.04545261]
[1642613461700,1.17840362,3136.4,3135.9,0.0073895]
[1642613461899,1.17840362,3136.4,3136.0,2.71347312]
[1642613462098,0.3,3136.4,3136.0,2.71347312]
[1642613462299,0.3,3136.4,3136.1,0.00625266]
[1642613462499,1.72234,3136.5,3136.1,0.00625266]
[1642613462500,0.4275,3136.5,3136.1,0.00625266]
[1642613462699,0.3,3136.5,3136.1,0.00625266]
[1642613462898,0.4275,3136.6,3135.9,0.0073895]
[1642613463302,1.37122316,3136.3,3135.9,0.0073895]
[1642613463503,1.67122316,3136.3,3135.9,0.0073895]
[1642613463700,2.03122316,3136.3,3135.9,0.0073895]
[1642613463976,3.33122316,3136.3,3135.9,0.0073895]
[1642613464176,7.0969,3136.2,3135.9,0.0073895]
[1642613464376,0.1275,3136.1,3135.9,0.0073895]
[1642613464575,1.1275,3136.1,3135.9,0.0073895]
[1642613464775,2.52509,3136.1,3135.9,0.0073895]
[1642613465178,10.36359,3136.1,3135.9,0.0073895]
[1642613465778,11.16118,3136.1,3135.9,0.0073895]
[1642613466581,5.4,3136.0,3135.8,0.04545261]
[1642613467793,11.16118,3136.1,3135.8,0.04545261]
[1642613467995,9.86118,3136.1,3135.8,0.04545261]
[1642613468195,7.8385,3136.1,3135.8,0.04545261]
[1642613469399,8.63589,3136.1,3135.8,0.04545261]
[1642613469600,9.23589,3136.1,3135.8,0.04545261]
[1642613470497,9.23589,3136.1,3135.0,4.59184945]
[1642613470903,9.23589,3136.1,3135.1,2.71846899]
[1642613470904,1.40272874,3135.7,3135.1,2.71846899]
[1642613471105,1.40272874,3135.7,3135.2,2.7139216]
[1642613471106,2.50025874,3135.7,3135.2,2.7139216]
[1642613471350,0.4275,3135.6,3135.2,2.71790057]
[1642613471550,0.4275,3135.6,3134.5,2.1275]
[1642613471551,1.4275,3135.6,3135.3,0.00341054]
[1642613471750,0.4275,3135.6,3135.3,0.00341054]
[1642613471951,0.4275,3135.6,3134.6,2.72177157]
[1642613471952,1.17322275,3135.2,3134.6,2.72177157]
[1642613472153,1.17322275,3135.2,3134.7,2.72120314]
[1642613472353,2.27087275,3135.2,3134.8,2.71438206]
[1642613472553,2.27087275,3135.2,3134.8,2.72063472]
[1642613472752,1.09765,3135.2,3134.9,2.7200663]
[1642613472952,1.09765,3135.2,3135.0,2.71438206]
[1642613473152,1.09765,3135.2,3135.0,2.71949787]
[1642613473353,1.09765,3135.2,3135.1,2.71438206]
[1642613473556,1.09765,3135.2,3135.0,0.00511581]
[1642613473957,4.7275,3135.1,3134.6,0.00738951]
[1642613474155,1.0,3135.0,3134.7,2.71477588]
[1642613474356,0.1275,3134.9,3134.3,0.00909478]
[1642613474556,0.1275,3134.9,3134.8,0.00625266]
[1642613474758,0.1275,3134.9,3134.1,2.903495]
[1642613474759,1.28873132,3134.9,3134.1,2.903495]
[1642613474958,1.28873132,3134.9,3134.2,2.6727131]
[1642613474959,0.79777,3134.8,3134.2,2.6727131]
[1642613475228,15.002,3134.6,3134.2,2.67441837]
[1642613475425,15.302,3134.6,3134.2,2.67441837]
[1642613475623,15.602,3134.6,3134.2,2.67441837]
[1642613475824,15.302,3134.6,3134.2,2.67441837]
[1642613476025,10.95841478,3134.6,3134.2,2.67441837]
[1642613476223,7.503,3134.6,3134.2,2.67441837]
[1642613477925,7.503,3134.6,3134.2,4.67441837]
[1642613478127,7.803,3134.6,3134.2,2.00170527]
[1642613478325,8.103,3134.6,3134.2,2.00170527]
[1642613478725,0.79784,3134.5,3134.2,2.00170527]
[1642613478962,0.4275,3134.4,3134.2,0.00170527]
[1642613479157,4.68957809,3134.3,3134.2,0.00170527]
[1642613479358,1.48957809,3134.3,3134.1,0.00227369]
[1642613479762,6.11156345,3134.2,3134.1,0.00227369]
[1642613479960,3.86156345,3134.2,3134.1,0.00227369]
[1642613480160,4.08856345,3134.2,3134.1,0.00227369]
[1642613480360,0.79805,3134.1,3133.7,0.00454739]
[1642613480561,3.21824174,3134.0,3133.3,0.00682108]
[1642613480760,3.34584174,3134.0,3133.3,0.00682108]
[1642613480961,1.19105704,3133.7,3133.3,0.00682108]
[1642613481162,0.3,3133.7,3133.3,0.00682108]
[1642613481471,4.54922253,3133.8,3133.3,0.00682108]
[1642613481662,1.22557,3133.8,3133.3,0.00682108]
[1642613482061,2.61707078,3133.8,3133.3,0.00682108]
[1642613482600,0.79807,3133.7,3133.3,0.00682108]
[1642613482799,0.3,3133.6,3133.3,0.00682108]
[1642613483001,0.6,3133.6,3133.3,0.00682108]
[1642613483202,0.3,3133.6,3133.3,0.00682108]
[1642613483405,5.24614687,3133.8,3133.3,0.00682108]
[1642613483605,0.1275,3133.7,3133.3,0.00682108]
[1642613483805,0.1275,3133.7,3133.2,0.00738951]
[1642613484610,1.1275,3133.7,3133.2,0.00738951]
[1642613484909,0.79821,3133.5,3133.2,0.00738951]
[1642613485108,0.1275,3133.4,3133.2,0.00738951]
[1642613485509,1.49526725,3132.9,3132.7,3.6008632]
[1642613485711,1.49526725,3132.9,3132.5,2.0]
[1642613485910,3.27512001,3132.8,3132.5,2.0]
[1642613486110,3.27512001,3132.8,3132.6,0.00113685]
[1642613486111,3.32410108,3132.8,3132.6,0.00113685]
[1642613486764,3.29426725,3132.9,3132.6,0.00113685]
[1642613486765,4.09255725,3132.9,3132.6,0.00113685]
[1642613486967,3.29426725,3132.9,3132.6,0.00113685]
[1642613487165,3.04466725,3132.9,3132.6,0.00113685]
[1642613488264,3.84291725,3132.9,3132.6,0.00113685]
[1642613488665,3.71541725,3132.9,3132.6,0.00113685]
[1642613488864,2.22015,3132.9,3132.6,0.00113685]
[1642613489065,0.6,3132.9,3132.6,0.00113685]
[1642613489268,0.4275,3133.1,3132.6,0.00113685]
[1642613489465,0.3,3133.1,3132.6,0.00113685]
[1642613489665,0.00113685,3133.0,3132.6,0.00113685]
[1642613489864,0.00113685,3133.0,3132.6,1.2444406]
[1642613490113,0.00113685,3133.0,3132.6,0.00113685]
[1642613490310,0.00113685,3133.0,3132.7,1.4567607]
[1642613490711,0.00113685,3133.0,3132.7,1.3567607]
[1642613490909,11.05366375,3133.2,3132.7,1.3567607]
[1642613491310,11.05366375,3133.2,3132.8,0.00113685]
[1642613491711,11.05366375,3133.2,3132.7,0.00170527]
[1642613492112,11.35366375,3133.2,3132.7,0.00170527]
[1642613492313,11.65366375,3133.2,3132.7,0.00170527]
[1642613493113,4.99286266,3133.1,3132.7,0.00170527]
[1642613493315,0.1275,3133.0,3132.6,0.0022737]
[1642613493516,1.2321,3133.0,3132.6,0.0022737]
[1642613493985,1.32341086,3132.8,3132.6,0.0022737]
[1642613494183,4.07591,3132.7,3132.6,0.0022737]
[1642613494384,4.2351,3132.7,3132.6,0.0022737]
[1642613494588,5.2351,3132.7,3132.6,0.0022737]
[1642613494983,3.95,3132.6,3132.5,2.0]
[1642613495184,5.3775,3132.6,3131.6,5.6038]
[1642613495386,0.79849,3132.3,3131.7,2.71629851]
[1642613495586,1.95909138,3132.2,3131.7,2.67141432]
[1642613495786,0.4277,3132.2,3131.7,0.00511581]
[1642613495986,1.4277,3132.2,3131.7,0.00511581]
[1642613496187,0.4277,3132.2,3131.7,0.00511581]
[1642613496588,0.1277,3132.2,3131.7,0.00511581]
[1642613496787,7.8687,3132.3,3132.2,4.99064086]
[1642613497089,4.0776,3132.6,3132.2,0.44467884]
[1642613497487,4.0776,3132.6,3132.3,0.00170527]
[1642613498114,4.3776,3132.6,3132.3,0.00170527]
[1642613498317,4.6776,3132.6,3132.3,0.00170527]
[1642613498714,5.47594,3132.6,3132.3,0.00170527]
[1642613498920,4.08069256,3132.5,3132.3,0.00170527]
[1642613499117,3.28624639,3132.4,3132.3,0.00170527]
[1642613499317,3.71374639,3132.4,3132.3,0.00170527]
[1642613499517,2.9197446,3132.4,3132.3,0.00170527]
[1642613500220,1.7275,3132.4,3132.3,0.00170527]
[1642613500620,1.4275,3132.4,3132.3,0.00170527]
[1642613500820,0.4275,3132.4,3132.3,0.00170527]
[1642613501652,0.3,3132.4,3132.3,0.00170527]
[1642613502652,3.3275,3132.4,3132.3,0.00170527]
[1642613503051,4.3275,3132.4,3132.3,0.00170527]
[1642613503256,7.74169857,3132.4,3132.3,0.00170527]
[1642613503457,7.74169857,3132.4,3132.2,0.44240515]
[1642613503458,4.5,3132.3,3132.2,0.44240515]
[1642613503656,9.48331169,3132.3,3132.2,0.44240515]
[1642613504257,5.8,3132.2,3131.6,2.0]
[1642613504459,1.59726,3132.0,3131.6,2.0]
[1642613504658,3.5615768,3131.9,3131.7,0.00341054]
[1642613504862,3.8615768,3131.9,3131.7,0.00341054]
[1642613505113,3.8615768,3131.9,3130.5,3.7131]
[1642613505114,5.8,3131.7,3130.5,3.7131]
[1642613505311,3.64213226,3131.6,3130.5,3.7131]
[1642613505506,1.53903471,3131.6,3130.6,0.00625266]
[1642613505911,0.79889,3131.4,3130.6,0.00625266]